lending/lending_fUSD_20250808
["ID","MTS","AMOUNT","RATE_DAILY","PERIOD"]
[377981997,1754646643790,-400.0,0.0001877,2]
[377981998,1754646643799,-400.0,0.0001877,2]
[377981999,1754646643808,-933.87,0.0001877,2]
[377982000,1754646643818,-715.96,0.0001877,2]
[377982001,1754646643827,-811.19,0.0001877,2]
[377982002,1754646643837,-876.76,0.0001877,2]
[377982003,1754646643847,-737.38,0.0001877,2]
[377982004,1754646643856,-760.85,0.0001877,2]
[377982006,1754646643865,-400.0,0.0001877,2]
[377982007,1754646643874,-444.83,0.0001877,2]
[377982008,1754646643883,-400.0,0.0001877,2]
[377982009,1754646643892,-400.0,0.0001877,2]
[377982010,1754646643901,-400.0,0.0001877,2]
[377982011,1754646643910,-400.0,0.0001877,2]
[377982012,1754646643918,-400.0,0.0001877,2]
[377982013,1754646643927,-400.0,0.0001877,2]
[377982014,1754646643936,-727.51,0.0001877,2]
[377982015,1754646643945,-1087.51,0.0001877,2]
[377982016,1754646643954,-723.37,0.0001877,2]
[377982017,1754646643963,-400.0,0.0001877,2]
[377982018,1754646643972,-1189.68,0.0001877,2]
[377982019,1754646643981,-400.0,0.0001877,2]
[377982020,1754646643991,-664.45,0.0001877,2]
[377982021,1754646644000,-400.0,0.0001877,2]
[377982022,1754646644010,-853.63,0.0001877,2]
[377982023,1754646644019,-1065.28,0.0001877,2]
[377982024,1754646644028,-400.0,0.0001877,2]
[377982025,1754646644038,-1232.98,0.0001877,2]
[377982026,1754646644047,-400.0,0.0001877,2]
[377982027,1754646644056,-400.0,0.0001877,2]
[377982028,1754646644066,-400.0,0.0001877,2]
[377982029,1754646644078,-400.0,0.0001877,2]
[377982030,1754646644090,-400.0,0.0001877,2]
[377982031,1754646644100,-724.79,0.0001877,2]
[377982032,1754646644110,-400.0,0.0001877,2]
[377982033,1754646644120,-1325.44,0.0001877,2]
[377982034,1754646644129,-774.74,0.0001877,2]
[377982035,1754646644139,-984.53,0.0001877,2]
[377982036,1754646644148,-400.0,0.0001877,2]
[377982037,1754646644157,-705.3,0.0001877,2]
[377982038,1754646644166,-900.92,0.0001877,2]
[377982039,1754646644176,-978.83,0.0001877,2]
[377982040,1754646644186,-400.0,0.0001877,2]
[377982041,1754646644195,-961.67,0.0001877,2]
[377982042,1754646644204,-400.0,0.0001877,2]
[377982043,1754646644214,-400.0,0.0001877,2]
[377982044,1754646644225,-400.0,0.0001877,2]
[377982045,1754646644234,-400.0,0.0001877,2]
[377982046,1754646644245,-400.0,0.0001877,2]
[377982047,1754646644255,-400.0,0.0001877,2]
[377982048,1754646644264,-400.0,0.0001877,2]
[377982049,1754646644273,-400.0,0.0001877,2]
[377982050,1754646644283,-426.04,0.0001877,2]
[377982051,1754646644292,-1331.98,0.0001877,2]
[377982052,1754646644301,-411.78,0.0001877,2]
[377982053,1754646644311,-1414.86,0.0001877,2]
[377982054,1754646644320,-1448.55,0.0001877,2]
[377982055,1754646644329,-538.03,0.0001877,2]
[377982056,1754646644338,-400.0,0.0001877,2]
[377982057,1754646644347,-400.0,0.0001877,2]
[377982058,1754646644357,-856.77,0.0001877,2]
[377982059,1754646644366,-400.0,0.0001877,2]
[377982060,1754646644377,-400.0,0.0001877,2]
[377982061,1754646644387,-795.87,0.0001877,2]
[377982062,1754646644397,-400.0,0.0001877,2]
[377982063,1754646644408,-1237.06,0.0001877,2]
[377982064,1754646644418,-905.98,0.0001877,2]
[377982065,1754646644427,-400.0,0.0001877,2]
[377982066,1754646644437,-400.0,0.0001877,2]
[377982067,1754646644448,-400.0,0.0001877,2]
[377982068,1754646644458,-762.46,0.0001877,2]
[377982069,1754646644468,-400.0,0.0001877,2]
[377982070,1754646644478,-1065.0,0.0001877,2]
[377982071,1754646644488,-443.2,0.0001877,2]
[377982072,1754646644498,-400.0,0.0001877,2]
[377982073,1754646644507,-400.0,0.0001877,2]
[377982074,1754646644517,-400.0,0.0001877,2]
[377982075,1754646644527,-400.0,0.0001877,2]
[377982076,1754646644536,-1444.67,0.0001877,2]
[377982077,1754646644545,-400.0,0.0001877,2]
[377982078,1754646644554,-400.0,0.0001877,2]
[377982079,1754646644563,-429.63,0.0001877,2]
[377982080,1754646644573,-914.46,0.0001877,2]
[377982081,1754646644582,-502.39,0.0001877,2]
[377982082,1754646644591,-400.0,0.0001877,2]
[377982083,1754646644600,-400.0,0.0001877,2]
[377982084,1754646644609,-1356.89,0.0001877,2]
[377982085,1754646644618,-400.0,0.0001877,2]
[377982086,1754646644627,-400.0,0.0001877,2]
[377982087,1754646644636,-1296.61,0.0001877,2]
[377982088,1754646644647,-900.31,0.0001877,2]
[377982089,1754646644656,-1503.42,0.0001877,2]
[377982090,1754646644664,-400.0,0.0001877,2]
[377982091,1754646644674,-441.31,0.0001877,2]
[377982092,1754646644684,-434.86,0.0001877,2]
[377982093,1754646644693,-725.45,0.0001877,2]
[377982094,1754646644702,-503.8,0.0001877,2]
[377982095,1754646644712,-1093.32,0.0001877,2]
[377982096,1754646644721,-400.0,0.0001877,2]
[377982097,1754646644731,-1610.76,0.0001877,2]
[377982098,1754646644741,-751.82,0.0001877,2]
[377982099,1754646644751,-810.06,0.0001877,2]
[377982100,1754646644762,-754.0,0.0001877,2]
[377982101,1754646644774,-400.0,0.0001877,2]
[377982102,1754646644783,-1291.14,0.0001877,2]
[377982103,1754646644792,-690.93,0.0001877,2]
[377982104,1754646644801,-659.7,0.0001877,2]
[377982105,1754646644812,-739.12,0.0001877,2]
[377982106,1754646644823,-942.55,0.0001877,2]
[377982107,1754646644834,-400.0,0.0001877,2]
[377982108,1754646644846,-1558.36,0.0001877,2]
[377982109,1754646644856,-400.0,0.0001877,2]
[377982110,1754646644865,-400.0,0.0001877,2]
[377982111,1754646644875,-1507.16,0.0001877,2]
[377982112,1754646644886,-400.0,0.0001877,2]
[377982113,1754646644895,-400.0,0.0001877,2]
[377982114,1754646644907,-743.07,0.0001877,2]
[377982115,1754646644918,-400.0,0.0001877,2]
[377982116,1754646644927,-400.0,0.0001877,2]
[377982117,1754646644937,-400.0,0.0001877,2]
[377982118,1754646644946,-421.66,0.0001877,2]
[377982119,1754646644955,-724.58,0.0001877,2]
[377982120,1754646644964,-400.0,0.0001877,2]
[377982121,1754646644974,-13097.47,0.0001877,2]
[377982122,1754646644984,-499.07663557,0.00018771,2]
[377982123,1754646644993,-400.0,0.00018771,2]
[377982124,1754646645003,-400.0,0.00018771,2]
[377982125,1754646645012,-400.0,0.00018771,2]
[377982126,1754646645021,-634.58,0.00018771,2]
[377982127,1754646645030,-460.58,0.00018771,2]
[377982128,1754646645039,-435.27,0.00018771,2]
[377982129,1754646645048,-400.0,0.00018771,2]
[377982130,1754646645058,-412.76,0.00018771,2]
[377982131,1754646645067,-400.0,0.00018771,2]
[377982132,1754646645076,-400.0,0.00018771,2]
[377982133,1754646645085,-694.01,0.00018771,2]
[377982134,1754646645095,-400.0,0.00018771,2]
[377982135,1754646645104,-428.64,0.00018771,2]
[377982136,1754646645113,-400.0,0.00018771,2]
[377982137,1754646645122,-622.19,0.00018771,2]
[377982138,1754646645131,-327.71600508,0.00018771,2]
[377982139,1754646645140,-400.0,0.00018771,2]
[377982140,1754646645149,-400.0,0.00018771,2]
[377982141,1754646645158,-400.0,0.00018771,2]
[377982142,1754646645168,-678.02,0.00018771,2]
[377982143,1754646645177,-400.0,0.00018771,2]
[377982144,1754646645187,-533.64,0.00018771,2]
[377982145,1754646645197,-400.0,0.00018771,2]
[377982146,1754646645208,-400.0,0.00018771,2]
[377982147,1754646645217,-6538.37,0.00018771,2]
[377982148,1754646645227,-400.0,0.00018771,2]
[377982149,1754646645238,-400.0,0.00018771,2]
[377982150,1754646645248,-400.0,0.00018771,2]
[377982151,1754646645259,-2158.53,0.00018771,2]
[377982152,1754646645269,-809.34,0.00018771,2]
[377982153,1754646645278,-400.0,0.00018771,2]
[377982154,1754646645287,-571.8,0.00018771,2]
[377982155,1754646645296,-1383.23,0.00018771,2]
[377982156,1754646645306,-1183.47,0.00018771,2]
[377982157,1754646645315,-641.09,0.00018771,2]
[377982158,1754646645325,-1324.69,0.00018771,2]
[377982159,1754646645334,-1812.51,0.00018771,2]
[377982160,1754646645343,-318.36070025,0.00018771,2]
[377982161,1754646645352,-591.04,0.00018771,2]
[377982162,1754646645361,-400.0,0.00018771,2]
[377982163,1754646645370,-1425.54,0.00018771,2]
[377982164,1754646645380,-400.0,0.00018771,2]
[377982165,1754646645390,-1098.69,0.00018771,2]
[377982166,1754646645399,-938.75,0.00018771,2]
[377982167,1754646645408,-815.56,0.00018771,2]
[377982168,1754646645417,-400.0,0.00018771,2]
[377982169,1754646645427,-400.0,0.00018771,2]
[377982170,1754646645436,-738.67,0.00018771,2]
[377982171,1754646645445,-1036.73,0.00018771,2]
[377982172,1754646645455,-403.30211019,0.00018771,2]
[377982173,1754646645464,-400.0,0.00018771,2]
[377982174,1754646645473,-825.18,0.00018771,2]
[377982175,1754646645482,-1517.94,0.00018771,2]
[377982176,1754646645491,-841.78,0.00018771,2]
[377982177,1754646645500,-400.0,0.00018771,2]
[377982178,1754646645510,-400.0,0.00018771,2]
[377982179,1754646645521,-711.62,0.00018771,2]
[377982180,1754646645531,-400.0,0.00018771,2]
[377982181,1754646645540,-913.06,0.00018771,2]
[377982182,1754646645550,-417.24,0.00018771,2]
[377982183,1754646645560,-1699.66,0.00018771,2]
[377982184,1754646645569,-933.63,0.00018771,2]
[377982185,1754646645579,-903.98,0.00018771,2]
[377982186,1754646645588,-400.0,0.00018771,2]
[377982187,1754646645598,-400.0,0.00018771,2]
[377982188,1754646645607,-847.27,0.00018771,2]
[377982189,1754646645617,-823.43,0.00018771,2]
[377982190,1754646645627,-400.0,0.00018771,2]
[377982191,1754646645636,-1790.32,0.00018771,2]
[377982192,1754646645645,-1088.67,0.00018771,2]
[377982193,1754646645654,-767.7,0.00018771,2]
[377982194,1754646645664,-893.9,0.00018771,2]
[377982195,1754646645673,-1001.03,0.00018771,2]
[377982196,1754646645683,-488.92,0.00018771,2]
[377982197,1754646645911,-400.0,0.00018771,2]
[377982198,1754646645922,-759.35,0.00018771,2]
[377982199,1754646645931,-400.0,0.00018771,2]
[377982200,1754646645940,-635.05,0.00018771,2]
[377982201,1754646645949,-400.0,0.00018771,2]
[377982202,1754646645958,-2580.24,0.00018771,2]
[377982203,1754646645967,-400.0,0.00018771,2]
[377982204,1754646645980,-400.0,0.00018771,2]
[377982205,1754646645990,-455.4,0.00018771,2]
[377982206,1754646645999,-872.87,0.00018771,2]
[377982207,1754646646008,-472.41,0.00018771,2]
[377982208,1754646646017,-400.0,0.00018771,2]
[377982209,1754646646026,-1247.28,0.00018771,2]
[377982210,1754646646036,-400.0,0.00018771,2]
[377982211,1754646646045,-532.5,0.00018771,2]
[377982212,1754646646057,-875.15,0.00018771,2]
[377982213,1754646646066,-875.21,0.00018771,2]
[377982214,1754646646075,-400.0,0.00018771,2]
[377982215,1754646646084,-400.0,0.00018771,2]
[377982216,1754646646094,-400.0,0.00018771,2]
[377982217,1754646646103,-1145.98,0.00018771,2]
[377982218,1754646646113,-400.0,0.00018771,2]
[377982219,1754646646122,-1024.81,0.00018771,2]
[377982220,1754646646131,-437.86,0.00018771,2]
[377982221,1754646646140,-400.0,0.00018771,2]
[377982222,1754646646149,-495.4,0.00018771,2]
[377982223,1754646646158,-959.84,0.00018771,2]
[377982224,1754646646167,-1494.86,0.00018771,2]
[377982225,1754646646176,-629.61,0.00018771,2]
[377982226,1754646646185,-1166.69,0.00018771,2]
[377982227,1754646646195,-1437.58,0.00018771,2]
[377982228,1754646646204,-2123.0,0.00018771,2]
[377982229,1754646646213,-983.12,0.00018771,2]
[377982230,1754646646222,-903.7,0.00018771,2]
[377982231,1754646646231,-400.0,0.00018771,2]
[377982232,1754646646241,-649.12,0.00018771,2]
[377982233,1754646646250,-400.0,0.00018771,2]
[377982234,1754646646261,-1342.38,0.00018771,2]
[377982235,1754646646271,-400.0,0.00018771,2]
[377982236,1754646646280,-400.0,0.00018771,2]
[377982237,1754646646290,-883.35,0.00018771,2]
[377982238,1754646646299,-1470.76,0.00018771,2]
[377982239,1754646646309,-400.0,0.00018771,2]
[377982240,1754646646318,-1356.13,0.00018771,2]
[377982241,1754646646327,-1262.25,0.00018771,2]
[377982242,1754646646337,-823.63,0.00018771,2]
[377982243,1754646646346,-400.0,0.00018771,2]
[377982244,1754646646355,-1283.78,0.00018771,2]
[377982245,1754646646364,-400.0,0.00018771,2]
[377982246,1754646646374,-400.0,0.00018771,2]
[377982247,1754646646383,-590.95,0.00018771,2]
[377982248,1754646646392,-826.46,0.00018771,2]
[377982249,1754646646401,-824.58,0.00018771,2]
[377982250,1754646646411,-400.0,0.00018771,2]
[377982251,1754646646420,-774.18,0.00018771,2]
[377982252,1754646646430,-647.48,0.00018771,2]
[377982253,1754646646439,-1126.73,0.00018771,2]
[377982254,1754646646449,-458.95,0.00018771,2]
[377982255,1754646646459,-888.99,0.00018771,2]
[377982256,1754646646469,-1067.94,0.00018771,2]
[377982257,1754646646478,-1208.76,0.00018771,2]
[377982258,1754646646488,-400.0,0.00018771,2]
[377982259,1754646646498,-663.97,0.00018771,2]
[377982260,1754646646507,-1160.24,0.00018771,2]
[377982261,1754646646517,-400.0,0.00018771,2]
[377982262,1754646646526,-400.0,0.00018771,2]
[377982263,1754646646536,-1037.24,0.00018771,2]
[377982264,1754646646545,-602.41,0.00018771,2]
[377982265,1754646646555,-400.0,0.00018771,2]
[377982266,1754646646565,-649.13,0.00018771,2]
[377982267,1754646646574,-1292.5,0.00018771,2]
[377982268,1754646646584,-1195.65,0.00018771,2]
[377982269,1754646646594,-400.0,0.00018771,2]
[377982270,1754646646604,-1313.66,0.00018771,2]
[377982271,1754646646613,-587.5,0.00018771,2]
[377982272,1754646646623,-400.0,0.00018771,2]
[377982273,1754646646632,-400.0,0.00018771,2]
[377982274,1754646646642,-771.6,0.00018771,2]
[377982275,1754646646651,-3338.16,0.00018771,2]
[377982276,1754646646660,-806.61,0.00018771,2]
[377982277,1754646646670,-400.0,0.00018771,2]
[377982278,1754646646679,-821.07,0.00018771,2]
[377982279,1754646646689,-1074.35,0.00018771,2]
[377982280,1754646646699,-1464.93,0.00018771,2]
[377982281,1754646646709,-400.0,0.00018771,2]
[377982282,1754646646721,-574.56,0.00018771,2]
[377982283,1754646646731,-741.86,0.00018771,2]
[377982284,1754646646741,-1064.17,0.00018771,2]
[377982285,1754646646751,-1515.72,0.00018771,2]
[377982286,1754646646760,-400.0,0.00018771,2]
[377982287,1754646646770,-400.0,0.00018771,2]
[377982288,1754646646781,-1185.96,0.00018771,2]
[377982289,1754646646790,-400.0,0.00018771,2]
[377982290,1754646646799,-1541.26,0.00018771,2]
[377982291,1754646646809,-400.0,0.00018771,2]
[377982292,1754646646818,-1404.57,0.00018771,2]
[377982293,1754646646828,-545.49,0.00018771,2]
[377982294,1754646646837,-601.68,0.00018771,2]
[377982295,1754646646848,-362.98,0.00018771,2]
[377982296,1754646646858,-1060.39,0.00018771,2]
[377982297,1754646646867,-1085.5,0.00018771,2]
[377982298,1754646646877,-405.55879737,0.00018771,2]
[377982299,1754646646888,-1075.02,0.00018771,2]
[377982300,1754646646898,-471.59,0.00018771,2]
[377982301,1754646646908,-805.82,0.00018771,2]
[377982302,1754646646918,-866.24,0.00018771,2]
[377982303,1754646646931,-771.34,0.00018771,2]
[377982304,1754646646943,-500.0,0.00018771,2]
[377982305,1754646646953,-980.58,0.00018771,2]
[377982306,1754646646966,-400.0,0.00018771,2]
[377982307,1754646646975,-737.87,0.00018771,2]
[377982308,1754646646985,-400.0,0.00018771,2]
[377982309,1754646647001,-934.06,0.00018771,2]
[377982310,1754646647010,-684.39,0.00018771,2]
[377982311,1754646647020,-400.0,0.00018771,2]
[377982312,1754646647030,-400.0,0.00018771,2]
[377982313,1754646647039,-723.35,0.00018771,2]
[377982314,1754646647049,-492.47,0.00018771,2]
[377982315,1754646647058,-741.12,0.00018771,2]
[377982316,1754646647067,-790.11,0.00018771,2]
[377982317,1754646647077,-400.0,0.00018771,2]
[377982318,1754646647086,-903.21,0.00018771,2]
[377982319,1754646647095,-1241.53,0.00018771,2]
[377982320,1754646647104,-400.0,0.00018771,2]
[377982321,1754646647114,-400.0,0.00018771,2]
[377982322,1754646647123,-400.0,0.00018771,2]
[377982323,1754646647133,-603.22,0.00018771,2]
[377982324,1754646647143,-400.0,0.00018771,2]
[377982325,1754646647152,-3498.38,0.00018771,2]
[377982326,1754646647162,-885.2,0.00018771,2]
[377982327,1754646647171,-400.0,0.00018771,2]
[377982328,1754646647181,-409.09,0.00018771,2]
[377982329,1754646647191,-400.0,0.00018771,2]
[377982330,1754646647201,-905.4,0.00018771,2]
[377982331,1754646647211,-400.0,0.00018771,2]
[377982332,1754646647220,-2132.08,0.00018771,2]
[377982333,1754646647230,-1374.49,0.00018771,2]
[377982334,1754646647239,-400.0,0.00018771,2]
[377982335,1754646647249,-400.0,0.00018771,2]
[377982336,1754646647258,-400.0,0.00018771,2]
[377982337,1754646647268,-434.88,0.00018771,2]
[377982338,1754646647278,-891.21,0.00018771,2]
[377982339,1754646647287,-403.55,0.00018771,2]
[377982340,1754646647297,-681.26,0.00018771,2]
[377982341,1754646647307,-400.0,0.00018771,2]
[377982342,1754646647316,-497.7,0.00018771,2]
[377982343,1754646647326,-400.0,0.00018771,2]
[377982344,1754646647335,-586.01,0.00018771,2]
[377982345,1754646647344,-1388.16,0.00018771,2]
[377982346,1754646647354,-400.0,0.00018771,2]
[377982347,1754646647364,-898.86,0.00018771,2]
[377982348,1754646647373,-441.57,0.00018771,2]
[377982349,1754646647383,-1096.03,0.00018771,2]
[377982350,1754646647393,-829.09,0.00018771,2]
[377982351,1754646647402,-400.0,0.00018771,2]
[377982352,1754646647411,-1338.81,0.00018771,2]
[377982353,1754646647421,-874.63,0.00018771,2]
[377982354,1754646647431,-425.54,0.00018771,2]
[377982355,1754646647441,-400.0,0.00018771,2]
[377982356,1754646647450,-400.0,0.00018771,2]
[377982357,1754646647459,-400.0,0.00018771,2]
[377982358,1754646647475,-3584.57,0.00018771,2]
[377982359,1754646647496,-448.61,0.00018771,2]
[377982360,1754646647505,-655.07284216,0.00018772,2]
[377982361,1754646647515,-501.52433447,0.00018773,2]
[377982362,1754646647528,-500.0,0.00018778,2]
[377982363,1754646647538,-150.0,0.00018778,2]
[377982364,1754646647548,-174.78,0.00018778,2]
[377982365,1754646647557,-164.55930875,0.00018778,2]
[377982366,1754646647567,-150.0,0.00018778,2]
[377982367,1754646647577,-211.62674257,0.00018791,2]
[377982368,1754646647588,-842.44706758,0.00018791,2]
[377982369,1754646647599,-457.64618948,0.00018791,2]
[377982370,1754646647608,-655.07284216,0.00018798,2]
[377982371,1754646647618,-1108.27,0.00018799,2]
[377982372,1754646647628,-400.0,0.00018799,2]
[377982373,1754646647637,-400.0,0.00018799,2]
[377982374,1754646647647,-400.0,0.00018799,2]
[377982375,1754646647657,-929.57,0.00018799,2]
[377982376,1754646647666,-1319.49,0.00018799,2]
[377982377,1754646647675,-400.0,0.00018799,2]
[377982378,1754646647686,-617.22,0.00018799,2]
[377982379,1754646647695,-1819.32,0.00018799,2]
[377982380,1754646647705,-1176.02,0.00018799,2]
[377982381,1754646647714,-1391.3,0.00018799,2]
[377982382,1754646647723,-400.0,0.00018799,2]
[377982383,1754646647733,-500.0,0.00018799,2]
[377982384,1754646647742,-16010.66884301,0.000188,2]
[377982385,1754646647752,-1135.4863,0.0001881,2]
[377982386,1754646647761,-5330.9008067,0.00018815,2]
[377982387,1754646647772,-655.07284216,0.00018823,2]
[377982388,1754646647782,-150.0,0.00018833,2]
[377982389,1754646647792,-655.07284216,0.00018849,2]
[377982390,1754646647801,-655.07284216,0.00018874,2]
[377982391,1754646647811,-642.731,0.00018875,2]
[377982392,1754646647820,-153.214,0.00018875,2]
[377982393,1754646647830,-312.37509156,0.000189,2]
[377982394,1754646647839,-165.55,0.000189,2]
[377982395,1754646647848,-165.55,0.000189,2]
[377982396,1754646647858,-442.24,0.000189,2]
[377982397,1754646647867,-163.88770734,0.000189,2]
[377982398,1754646647876,-726.81173086,0.000189,2]
[377982399,1754646647886,-220.2370841,0.000189,2]
[377982400,1754646647895,-655.07284216,0.000189,2]
[377982401,1754646647905,-626.51236435,0.000189,2]
[377982402,1754646647914,-206.88692928,0.000189,3]
[377982403,1754646647923,-2551.13362328,0.000189,2]
[377982404,1754646647933,-1135.4863,0.0001892,2]
[377982405,1754646647942,-176.26,0.00018933,2]
[377982406,1754646647951,-23267.11943396,0.00018943,2]
[377982407,1754646647960,-4688.59588634,0.00018945,2]
[377982408,1754646647970,-7607.32613388,0.00018945,2]
[377982409,1754646647979,-7607.32613388,0.00018946,2]
[377982410,1754646647988,-150751.02712443,0.00018947,2]
[377982411,1754646647998,-23267.11943396,0.00018947,2]
[377982412,1754646648007,-20768.35815862,0.00018952,2]
[377982413,1754646648017,-7607.32613388,0.00018954,2]
[377982414,1754646648027,-1734.94717636,0.00018955,2]
[377982415,1754646648037,-23267.11943396,0.00018957,2]
[377982416,1754646648046,-23267.11943396,0.00018957,2]
[377982417,1754646648055,-150751.02712443,0.00018958,2]
[377982418,1754646648064,-150751.02712443,0.0001896,2]
[377982419,1754646648074,-20768.35815862,0.0001896,2]
[377982420,1754646648083,-4688.59588634,0.00018962,2]
[377982421,1754646648092,-1734.94717636,0.00018965,2]
[377982422,1754646648102,-23267.11943396,0.00018965,2]
[377982423,1754646648111,-150751.02712443,0.00018966,2]
[377982424,1754646648120,-7607.32613388,0.00018967,2]
[377982425,1754646648130,-1734.94717636,0.00018968,2]
[377982426,1754646648139,-442.0,0.00018968,2]
[377982427,1754646648148,-4688.59588634,0.00018969,2]
[377982428,1754646648157,-753.61807797,0.0001897,2]
[377982429,1754646648177,-150.0,0.0001897,2]
[377982430,1754646648187,-500.0,0.00018973,2]
[377982431,1754646648196,-500.0,0.00018973,2]
[377982432,1754646648207,-500.0,0.00018973,2]
[377982433,1754646648218,-500.0,0.00018973,2]
[377982434,1754646648228,-500.0,0.00018973,2]
[377982435,1754646648368,-500.0,0.00018973,2]
[377982436,1754646648378,-214.36303346,0.00018973,2]
[377982437,1754646648387,-500.0,0.00018973,2]
[377982438,1754646648396,-257.84456121,0.00018973,2]
[377982439,1754646648406,-500.0,0.00018973,2]
[377982440,1754646648415,-500.0,0.00018973,2]
[377982441,1754646648424,-500.0,0.00018973,2]
[377982442,1754646648434,-500.0,0.00018973,2]
[377982443,1754646648444,-500.0,0.00018973,2]
[377982444,1754646648453,-164.61390416,0.00018973,2]
[377982445,1754646648464,-583.41074771,0.00018973,2]
[377982446,1754646648473,-505.42656466,0.00018973,2]
[377982447,1754646648482,-1734.94717636,0.00018973,2]
[377982448,1754646648492,-7607.32613388,0.00018976,2]
[377982449,1754646648502,-20768.35815862,0.00018984,2]
[377982450,1754646648511,-4032.80161666,0.00018987,2]
[377982451,1754646650673,-504.85,0.00018769,2]
[377982452,1754646650684,-400.0,0.00018769,2]
[377982453,1754646650695,-149.54504575,0.00018769,2]
[377982454,1754646671676,500.0,0.00018,2]
[377982455,1754646682123,150.0,0.000175,2]
[377982457,1754646767684,1195.61807797,0.0003013,120]
[377982458,1754646785925,331.93,0.00015068,2]
[377982459,1754646786100,331.93,0.00016666,2]
[377982460,1754646828040,220.32018737,0.00017948,2]
[377982461,1754646841851,2636.18,0.00017994,2]
[377982463,1754646882047,218.27,0.00017986,2]
[377982464,1754646910252,150.0,0.00017984,2]
[377982465,1754646926312,10000.0,0.00030137,120]
[377982468,1754646928429,256.22,0.00013699,2]
[377982477,1754646944439,230.0,0.0003013,120]
[377982479,1754647006511,427.0,0.0003013,120]
[377982481,1754647063762,628.0,0.0003013,120]
[377982489,1754647155679,507.0,0.00017212,2]
[377982490,1754647175598,1000.0,0.00017893,2]
[377982491,1754647204359,150.0,0.000175,2]
[377982497,1754647571282,549.94,0.00027397,120]
[377982499,1754647654980,7327.68,0.00017801,2]
[377982501,1754647686400,188.25,0.00017817,2]
[377982502,1754647728229,150.0,0.000175,2]
[377982503,1754647740137,298.73,0.00015068,2]
[377982504,1754647740326,298.73,0.00016655,2]
[377982513,1754647794958,1010.32,0.000175,2]
[377982518,1754647832336,-7725.49,0.00018014,2]
[377982519,1754647832346,-1200.0,0.00018046,2]
[377982520,1754647832355,-267.46074303,0.00018047,2]
[377982521,1754647832364,-1850.47,0.00018048,2]
[377982522,1754647832374,-603.07808436,0.00018049,2]
[377982523,1754647832383,-212.50117261,0.00018241,2]
[377982524,1754647832547,-86.22882739,0.00018241,2]
[377982525,1754647832556,-500.0,0.00018493,2]
[377982526,1754647832566,-163.76821054,0.00018669,2]
[377982527,1754647832575,-1264.7900606,0.00018669,2]
[377982698,1754647838230,-7876.34786846,0.00018669,2]
[377982699,1754647838439,-3531.17351344,0.00018669,2]
[377982700,1754647838492,-10747.1949575,0.00018669,2]
[377982701,1754647838502,-515.8413,0.00018669,2]
[377982702,1754647838511,-150.0,0.0001868,2]
[377982703,1754647838520,-503.0,0.00018685,2]
[377982704,1754647838529,-163.76821054,0.00018702,2]
[377982705,1754647838539,-188.25,0.00018708,2]
[377982706,1754647838548,-163.76821054,0.00018735,2]
[377982707,1754647838558,-305.7073,0.0001874,2]